fUST/lending_fUST_20250515
["ID","MTS","AMOUNT","RATE_DAILY","PERIOD"]
[361133585,1747298811213,-175.358504,0.00013699,2]
[361133586,1747298811234,-2058.38568937,0.00016444,2]
[361133587,1747298811256,-250.43090005,0.00016913,2]
[361133588,1747298811278,-1200.0,0.00017299,2]
[361133589,1747298811301,-500.0,0.00017299,2]
[361133590,1747298811321,-358.92979051,0.00017299,2]
[361133591,1747298811343,-598.97166042,0.00017299,2]
[361133592,1747298811365,-357.78820373,0.00017299,2]
[361133593,1747298811388,-3054.26071887,0.000173,2]
[361133594,1747298811410,-1013.70206905,0.000173,2]
[361133632,1747299032288,-653.58100193,0.00016956,2]
[361133636,1747299032341,-1376.73825836,0.00016956,2]
[361133637,1747299032353,-1073.36140284,0.00016956,2]
[361133641,1747299032396,-374.05366051,0.00016956,2]
[361133666,1747299038255,-1522.26567636,0.00016956,2]
[361133667,1747299038265,-151.0,0.00017555,2]
[361133668,1747299038274,-229.037,0.00017555,2]
[361133669,1747299038283,-184.639,0.00017555,2]
[361133670,1747299038292,-69592.35373765,0.00017555,2]
[361133671,1747299038309,-6227.95369835,0.00017555,2]
[361133672,1747299038319,-2000.0,0.0001764,2]
[361133673,1747299038328,-153.0,0.00017644,3]
[361133674,1747299038337,-300.0,0.00017653,2]
[361133675,1747299038346,-24024.44948087,0.00017654,2]
[361133676,1747299038355,-151.0,0.00017654,2]
[361133677,1747299038364,-151.0,0.00017654,2]
[361133678,1747299038373,-501.0,0.00017658,2]
[361133679,1747299038382,-184.348604,0.00017762,2]
[361133680,1747299038393,-184.348604,0.00017762,2]
[361133681,1747299038402,-152.471846,0.00017762,2]
[361133682,1747299038411,-153.0,0.000178,2]
[361133683,1747299038421,-5835.66925175,0.00017871,2]
[361133684,1747299038432,-3010.88555315,0.00017871,2]
[361133685,1747299038443,-85.41219308,0.00017871,2]
[361133686,1747299038452,-2918.66195935,0.000179,2]
[361133687,1747299038462,-2918.66195921,0.00017934,2]
[361133688,1747299038471,-1000.0,0.00017945,2]
[361133689,1747299038480,-1006.62219741,0.00017945,2]
[361133690,1747299038489,-2918.66195921,0.00017969,2]
[361133691,1747299038499,-278.52573,0.00017969,2]
[361133692,1747299038508,-510.13636632,0.00017969,2]
[361133693,1747299038517,-2293.63,0.0001797,2]
[361133694,1747299038526,-500.0,0.0001797,2]
[361133695,1747299038535,-500.0,0.0001797,2]
[361133696,1747299038545,-500.0,0.0001797,2]
[361133697,1747299038555,-500.0,0.0001797,2]
[361133698,1747299038564,-500.0,0.0001797,2]
[361133699,1747299038573,-500.0,0.0001797,2]
[361133700,1747299038583,-500.0,0.0001797,2]
[361133701,1747299038592,-500.0,0.0001797,2]
[361133702,1747299038601,-446.81538038,0.0001797,2]
[361133703,1747299038611,-500.0,0.0001797,2]
[361133704,1747299038620,-500.0,0.0001797,2]
[361133705,1747299038629,-500.0,0.0001797,2]
[361133706,1747299038640,-500.0,0.0001797,2]
[361133707,1747299038650,-500.0,0.0001797,2]
[361133708,1747299038659,-500.0,0.0001797,2]
[361133709,1747299038668,-500.0,0.0001797,2]
[361133710,1747299038677,-500.0,0.0001797,2]
[361133711,1747299038687,-468.79490038,0.0001797,2]
[361133712,1747299038696,-549.78964551,0.0001797,2]
[361133713,1747299038706,-500.0,0.0001797,2]
[361133714,1747299038715,-500.0,0.0001797,2]
[361133715,1747299038725,-500.0,0.0001797,2]
[361133716,1747299038734,-500.0,0.0001797,2]
[361133717,1747299038743,-500.0,0.0001797,2]
[361133718,1747299038753,-500.0,0.0001797,2]
[361133719,1747299038763,-500.0,0.0001797,2]
[361133720,1747299038772,-500.0,0.0001797,2]
[361133721,1747299038781,-250.0,0.0001797,2]
[361133722,1747299038791,-500.0,0.0001797,2]
[361133723,1747299038801,-2986.71744914,0.00017971,2]
[361133724,1747299038810,-634.72328522,0.00017971,3]
[361133725,1747299038820,-8289.17815938,0.00017971,5]
[361133726,1747299038832,-623.71762904,0.00017971,5]
[361133743,1747299040618,-102210.0,0.00017971,5]
[361133744,1747299040631,-30889.83041529,0.00017971,5]
[361133745,1747299040671,-1430.80000004,0.00017971,5]
[361133775,1747299043430,-5000.0,0.00017766,2]
[361133777,1747299043440,-68154.76883063,0.00017971,5]
[361133778,1747299043452,-5568.0630785,0.00017971,5]
[361133796,1747299043591,-1618.647504,0.00017971,5]
[361133799,1747299043604,-3080.28155623,0.00017971,5]
[361133825,1747299046483,-51114.5023199,0.00017971,5]
[361133826,1747299046640,-2571.5,0.00017971,5]
[361133843,1747300188841,260.98100269,0.00013265,2]
[361133912,1747300232689,-467.09929999,0.00013265,2]
[361133915,1747300232705,-3396.06104675,0.00013265,2]
[361133917,1747300232716,-875.85865057,0.00013265,2]
[361133918,1747300232725,-175.358504,0.00013699,2]
[361133919,1747300232735,-300.0,0.00017069,2]
[361133920,1747300232744,-300.0,0.00017069,2]
[361133921,1747300232755,-1200.0,0.00017069,2]
[361133922,1747300232765,-5000.0,0.0001707,2]
[361133923,1747300232774,-5000.0,0.0001707,2]
[361133925,1747300232783,-5000.0,0.0001707,2]
[361133926,1747300232793,-5000.0,0.0001707,2]
[361133927,1747300232803,-207.4,0.0001707,2]
[361133928,1747300232812,-157.36593077,0.00017238,2]
[361133929,1747300232821,-407.8833117,0.00017338,2]
[361133930,1747300232830,-500.0,0.00017338,2]
[361133931,1747300232839,-500.0,0.00017338,2]
[361133933,1747300232848,-500.0,0.00017338,2]
[361133935,1747300232857,-191.94323916,0.00017338,2]
[361133936,1747300232866,-500.0,0.00017338,2]
[361133937,1747300232875,-286.27482896,0.00017338,2]
[361133938,1747300232884,-500.0,0.00017338,2]
[361133939,1747300232893,-500.0,0.00017338,2]
[361133940,1747300232903,-500.0,0.00017338,2]
[361133941,1747300232914,-500.0,0.00017338,2]
[361133942,1747300232925,-407.33130315,0.00017338,2]
[361133943,1747300232934,-500.0,0.00017338,2]
[361133944,1747300232944,-226.41565641,0.00017338,2]
[361133945,1747300232956,-273.58434359,0.00017338,2]
[361133946,1747300232965,-287.43511959,0.00017338,2]
[361133947,1747300232977,-212.56488041,0.00017338,2]
[361133948,1747300232987,-381.82349966,0.00017338,2]
[361133949,1747300232996,-500.0,0.00017338,2]
[361133950,1747300233007,-500.0,0.00017338,2]
[361133951,1747300233016,-500.0,0.00017338,2]
[361133952,1747300233026,-500.0,0.00017338,2]
[361133953,1747300233036,-500.0,0.00017338,2]
[361133954,1747300233045,-362.38402429,0.00017338,2]
[361133955,1747300233055,-500.0,0.00017338,2]
[361133956,1747300233064,-9044.65931663,0.00017339,2]
[361133957,1747300233074,-500.0,0.00017339,2]
[361133958,1747300233084,-282.77795945,0.00017339,2]
[361133959,1747300233093,-5000.0,0.00017401,2]
[361133960,1747300233103,-157.36593075,0.00017555,2]
[361133961,1747300233113,-322.1351761,0.00017726,2]
[361133962,1747300233122,-2000.0,0.00017791,2]
[361133963,1747300233132,-172.0,0.00017836,3]
[361133964,1747300233141,-8047.31151749,0.00017871,2]
[361133965,1747300233151,-157.36593075,0.00017871,2]
[361133966,1747300233161,-186.0,0.000179,2]
[361133967,1747300233171,-186.0,0.000179,2]
[361133968,1747300233181,-2918.66195935,0.000179,2]
[361133969,1747300233191,-184.639,0.00017933,2]
[361133970,1747300233201,-229.037,0.00017933,2]
[361133971,1747300233211,-2918.66195921,0.00017934,2]
[361133972,1747300233220,-151.2139402,0.00017949,2]
[361133973,1747300233231,-5000.0,0.00017949,2]
[361133974,1747300233240,-974.31105081,0.00017949,2]
[361133975,1747300233250,-500.0,0.00017959,2]
[361133976,1747300233260,-160.0,0.00017959,2]
[361133977,1747300233270,-1000.0,0.00017959,2]
[361133978,1747300233280,-1006.62219741,0.00017959,2]
[361133979,1747300233291,-998.07804268,0.0001796,3]
[361133980,1747300233300,-12629.50215115,0.0001796,3]
[361133981,1747300233310,-160.0,0.0001796,3]
[361133982,1747300233320,-2986.71744914,0.0001796,2]
[361133983,1747300233330,-32422.42161382,0.0001796,3]
[361133984,1747300233340,-9281.4635057,0.0001796,2]
[361133985,1747300233353,-466.53666222,0.0001796,2]
[361134002,1747300238424,-338.27778723,0.0001796,2]
[361134003,1747300238436,-1063.34048912,0.0001796,2]
[361134004,1747300238477,-1843.21670534,0.0001796,2]
[361134005,1747300238490,-6381.23555731,0.0001796,2]
[361134006,1747300238530,-2360.93088485,0.0001796,2]
[361134013,1747300240735,-512.73081395,0.0001796,2]
[361134139,1747300246805,-323.03681146,0.00017337,2]
[361134141,1747300246815,-262.48711381,0.00017337,2]
[361134143,1747300246824,-226.53102364,0.00017337,2]
[361134146,1747300246835,-138.61062402,0.00017337,2]
[361134148,1747300246845,-500.0,0.00017958,2]
[361134150,1747300246855,-500.0,0.00017958,2]
[361134152,1747300246865,-289.66258598,0.00017958,2]
[361134252,1747300247855,-5000.0,0.00017164,2]
[361134254,1747300247865,-210.33741402,0.00017958,2]
[361134256,1747300247875,-500.0,0.00017958,2]
[361134258,1747300247884,-500.0,0.00017958,2]
[361134260,1747300247893,-500.0,0.00017958,2]
[361134262,1747300247903,-500.0,0.00017958,2]
[361134264,1747300247912,-40.97403468,0.00017958,2]
[361134266,1747300247923,-459.02596532,0.00017958,2]
[361134268,1747300247932,-212.35376173,0.00017958,2]
[361134270,1747300247942,-500.0,0.00017958,2]
[361134272,1747300247951,-199.78964551,0.00017958,2]
[361134274,1747300247960,-500.0,0.00017958,2]
[361134276,1747300247973,-546.96066747,0.00017958,2]
[361134278,1747300247982,-500.0,0.00017958,2]
[361134280,1747300247992,-500.0,0.00017958,2]
[361134282,1747300248002,-500.0,0.00017958,2]
[361134285,1747300248011,-500.0,0.00017958,2]
[361134288,1747300248020,-500.0,0.00017958,2]
[361134291,1747300248030,-500.0,0.00017958,2]
[361134294,1747300248039,-500.0,0.00017958,2]
[361134297,1747300248049,-500.0,0.00017958,2]
[361134300,1747300248059,-500.0,0.00017958,2]
[361134303,1747300248069,-500.0,0.00017958,2]
[361134306,1747300248078,-500.0,0.00017958,2]
[361134309,1747300248088,-500.0,0.00017958,2]
[361134312,1747300248097,-83400.57007358,0.0001796,2]
[361134315,1747300248108,-36947.35673838,0.0001796,2]
[361134317,1747300248120,-17377.0,0.0001796,2]
[361134320,1747300248136,-343359.34078232,0.0001796,2]
[361134322,1747300248145,-151.0,0.0001796,2]
[361134324,1747300248155,-151.0,0.0001796,2]
[361134326,1747300248165,-151.0,0.0001796,2]
[361134328,1747300248174,-151.0,0.0001796,2]
[361134330,1747300248184,-151.0,0.0001796,2]
[361134332,1747300248193,-423.25355,0.0001796,2]
[361134334,1747300248202,-423.25355,0.0001796,2]
[361134336,1747300248212,-151.0,0.0001796,2]
[361134338,1747300248222,-151.0,0.0001796,2]
[361134339,1747300248232,-151.0,0.0001796,2]
[361134342,1747300248242,-167.713464,0.0001796,2]
[361134344,1747300248251,-617.007035,0.0001796,2]
[361134346,1747300248262,-617.007035,0.0001796,2]
[361134348,1747300248271,-252.041369,0.0001796,2]
[361134350,1747300248281,-252.041369,0.0001796,2]
[361134352,1747300248291,-2326.567312,0.0001796,2]
[361134354,1747300248300,-2326.567312,0.0001796,2]
[361134356,1747300248310,-151.0,0.0001796,2]
[361134358,1747300248320,-151.0,0.0001796,2]
[361134360,1747300248329,-259.910893,0.0001796,2]
[361134362,1747300248339,-363.603021,0.0001796,2]
[361134364,1747300248348,-259.910893,0.0001796,2]
[361134366,1747300248358,-363.603021,0.0001796,2]
[361134368,1747300248368,-600.607232,0.0001796,2]
[361134370,1747300248378,-600.607232,0.0001796,2]
[361134372,1747300248387,-151.0,0.0001796,2]
[361134374,1747300248397,-9173.924637,0.0001796,2]
[361134376,1747300248412,-9173.924637,0.0001796,2]
[361134378,1747300248422,-151.0,0.0001796,2]
[361134380,1747300248432,-151.0,0.0001796,2]
[361134382,1747300248442,-152.853804,0.0001796,2]
[361134384,1747300248453,-152.853804,0.0001796,2]
[361134386,1747300248462,-152.853804,0.0001796,2]
[361134387,1747300248473,-152.853804,0.0001796,2]
[361134389,1747300248484,-160.43817396,0.00017968,2]
[361134391,1747300248494,-2918.66195921,0.00017969,2]
[361134393,1747300248504,-873409.97558785,0.00017971,5]
[361134396,1747300248518,-189504.844,0.00017971,5]
[361138294,1747301432047,-5000.0,0.00016138,2]
[361138296,1747301432057,-261.1223504,0.00016798,2]
[361138297,1747301432067,-300.0,0.00016898,2]
[361138298,1747301432076,-241.0,0.00016898,2]
[361138300,1747301432086,-25383.79397462,0.00016899,2]
[361138302,1747301432099,-1200.0,0.00016899,2]
[361138304,1747301432111,-314.54692683,0.00016899,2]
[361138434,1747301437557,-500.0,0.00016898,2]
[361138436,1747301437567,-321.1406638,0.00016898,2]
[361138438,1747301437578,-291.28810933,0.00016898,2]
[361138440,1747301437587,-641.81062925,0.00016898,2]
[361138442,1747301437597,-500.0,0.00016898,2]
[361138445,1747301437606,-500.0,0.00016898,2]
[361138446,1747301437616,-500.0,0.00016898,2]
[361138448,1747301437625,-232.21162111,0.00016898,2]
[361138451,1747301437635,-500.0,0.00016898,2]
[361138452,1747301437644,-500.0,0.00016898,2]
[361138454,1747301437654,-500.0,0.00016898,2]
[361138456,1747301437663,-487.58021953,0.00016898,2]
[361138458,1747301437674,-12.41978047,0.00016898,2]
[361138461,1747301437684,-500.0,0.00016898,2]
[361138463,1747301437693,-500.0,0.00016898,2]
[361138465,1747301437703,-2474.67736453,0.00016899,2]
[361138467,1747301437714,-8975.63753083,0.00016899,2]
[361138469,1747301437723,-233.16877528,0.00016969,2]
[361138471,1747301437732,-5000.0,0.0001707,2]
[361138473,1747301437741,-5000.0,0.0001707,2]
[361138475,1747301437750,-5000.0,0.0001707,2]
[361138477,1747301437760,-5000.0,0.0001707,2]
[361138479,1747301437773,-207.4,0.0001707,2]
[361138481,1747301437782,-233.16877528,0.00017098,2]
[361138483,1747301437791,-233.16877528,0.00017227,2]
[361138485,1747301437800,-155.0,0.00017272,2]
[361138487,1747301437810,-65.58268243,0.00017272,2]
[361138490,1747301437822,-117.64731757,0.00017272,2]
[361138493,1747301437831,-233.16877528,0.00017356,2]
[361138495,1747301437840,-177.97148296,0.00017441,2]
[361138498,1747301437855,-501.87708855,0.00017441,2]
[361138501,1747301437867,-4320.15142849,0.00017441,2]
[361138502,1747301437876,-233.16877528,0.00017484,2]
[361138504,1747301437886,-233.16877528,0.00017613,2]
[361138506,1747301437895,-233.16877528,0.00017742,2]
[361138508,1747301437904,-729.8872374,0.00017863,2]
[361138510,1747301437913,-363.1834287,0.00017863,2]
[361138512,1747301437922,-363.1834287,0.00017863,2]
[361138514,1747301437931,-363.1834287,0.00017863,2]
[361138516,1747301437940,-243.78239117,0.00017871,2]
[361138519,1747301437960,-6998.79797458,0.00017871,2]
[361138521,1747301437970,-233.16877528,0.00017871,2]
[361138523,1747301437979,-3000.0,0.00017899,2]
[361138525,1747301437988,-363.1834287,0.000179,2]
[361138527,1747301437997,-2626.79576355,0.000179,2]
[361138529,1747301438007,-500.0,0.00017917,2]
[361138531,1747301438016,-500.0,0.00017917,2]
[361138533,1747301438025,-639.85275186,0.00017917,2]
[361138535,1747301438035,-595.75795213,0.00017917,2]
[361138537,1747301438044,-500.0,0.00017917,2]
[361138539,1747301438054,-500.0,0.00017917,2]
[361138541,1747301438063,-500.0,0.00017917,2]
[361138543,1747301438073,-500.0,0.00017917,2]
[361138545,1747301438082,-500.0,0.00017917,2]
[361138546,1747301438091,-500.0,0.00017917,2]
[361138547,1747301438103,-460.08380038,0.00017917,2]
[361138548,1747301438112,-500.0,0.00017917,2]
[361138549,1747301438122,-500.0,0.00017917,2]
[361138550,1747301438131,-500.0,0.00017917,2]
[361138551,1747301438140,-500.0,0.00017917,2]
[361138552,1747301438149,-500.0,0.00017917,2]
[361138553,1747301438159,-500.0,0.00017917,2]
[361138554,1747301438168,-500.0,0.00017917,2]
[361138555,1747301438177,-500.0,0.00017917,2]
[361138556,1747301438187,-500.0,0.00017917,2]
[361138557,1747301438196,-500.0,0.00017917,2]
[361138558,1747301438205,-500.0,0.00017917,2]
[361138559,1747301438214,-500.0,0.00017917,2]
[361138560,1747301438223,-500.0,0.00017917,2]
[361138561,1747301438233,-500.0,0.00017917,2]
[361138562,1747301438241,-166.0,0.00017918,3]
[361138564,1747301438250,-2626.79576328,0.00017934,2]
[361138566,1747301438260,-151.0,0.0001796,2]
[361138568,1747301438270,-151.0,0.0001796,2]
[361138570,1747301438279,-278.81767187,0.0001796,2]
[361138572,1747301438292,-24.42746413,0.0001796,2]
[361138574,1747301438302,-303.245136,0.0001796,2]
[361138576,1747301438311,-303.245136,0.0001796,2]
[361138578,1747301438321,-303.245136,0.0001796,2]
[361138594,1747301438455,-151.0,0.0001796,2]
[361138596,1747301438465,-254.343809,0.0001796,2]
[361138598,1747301438475,-151.0,0.0001796,2]
[361138600,1747301438485,-151.0,0.0001796,2]
[361138602,1747301438494,-419.20901,0.0001796,2]
[361138604,1747301438504,-419.20901,0.0001796,2]
[361138606,1747301438513,-2626.79576328,0.00017969,2]
[361138608,1747301438522,-4142.34753948,0.00017969,2]
[361138610,1747301438535,-1132.65246052,0.00017969,2]
[361138611,1747301438544,-2293.63,0.0001797,2]
[361138612,1747301438554,-1493.35872457,0.00017971,2]
[361138613,1747301438563,-16211.21080691,0.00017971,3]
[361138614,1747301438572,-12629.50215115,0.00017971,3]
[361138615,1747301438582,-160.0,0.00017971,3]
[361138616,1747301438591,-500.0,0.00017971,5]
[361138617,1747301438600,-28663.2419591,0.00017971,5]
[361138618,1747301441363,-0.00478833,0.00017971,5]
[361138644,1747301446091,-2748.185565,0.00017971,5]
[361138645,1747301446220,-3910.60371034,0.00017971,5]
[361139791,1747301953928,-5000.0,0.00016562,2]
[361139792,1747301953950,-300.0,0.00016896,2]
[361139793,1747301953975,-581.35684679,0.00016897,2]
[361139794,1747301953997,-400.51275651,0.00016897,2]
[361139795,1747301954018,-450.0,0.00016897,2]
[361139796,1747301954041,-400.68537429,0.00016897,2]
[361139797,1747301954062,-357.97973424,0.00016897,2]
[361139798,1747301954089,-450.0,0.00016897,2]
[361139799,1747301954110,-450.0,0.00016897,2]
[361139800,1747301954130,-450.0,0.00016897,2]
[361139801,1747301954151,-450.0,0.00016897,2]
[361139802,1747301954171,-450.0,0.00016897,2]
[361139803,1747301954191,-450.0,0.00016897,2]
[361139804,1747301954212,-215.46528817,0.00016897,2]
[361139809,1747302220980,175.358504,0.00013699,2]
[361139814,1747302357136,-5000.0,0.00016395,2]
[361139815,1747302357157,-300.0,0.00016894,2]
[361139816,1747302357323,-500.0,0.00016895,2]
[361139817,1747302357344,-450.0,0.00016895,2]
[361139818,1747302357372,-450.0,0.00016895,2]
[361139819,1747302357399,-503.09872212,0.00016895,2]
[361139820,1747302357421,-450.0,0.00016895,2]
[361139821,1747302357446,-450.0,0.00016895,2]
[361139822,1747302357469,-453.16,0.00016895,2]
[361139823,1747302357490,-450.0,0.00016895,2]
[361139824,1747302357512,-502.47863682,0.00016895,2]
[361139825,1747302357535,-512.99,0.00016895,2]
[361139826,1747302357557,-576.73581149,0.00016895,2]
[361139827,1747302357582,-1596.72,0.00016895,2]
[361139828,1747302357605,-450.0,0.00016895,2]
[361139829,1747302357629,-627.87,0.00016895,2]
[361139830,1747302357652,-450.0,0.00016895,2]
[361139831,1747302357674,-450.0,0.00016895,2]
[361139832,1747302357699,-201.00557268,0.00016895,2]
[361139833,1747302357721,-450.0,0.00016895,2]
[361139834,1747302357744,-450.0,0.00016895,2]
[361139835,1747302357768,-450.0,0.00016895,2]
[361139836,1747302357791,-580.81,0.00016895,2]
[361139837,1747302357816,-450.0,0.00016895,2]
[361139838,1747302357838,-450.0,0.00016895,2]
[361139839,1747302357861,-450.0,0.00016895,2]
[361139840,1747302357883,-450.0,0.00016895,2]
[361139841,1747302357905,-403.04494381,0.00016895,2]
[361139842,1747302357927,-450.0,0.00016895,2]
[361139843,1747302357950,-400.0,0.00016896,2]
[361139844,1747302357973,-450.0,0.00016896,2]
[361139845,1747302357995,-400.5410689,0.00016896,2]
[361139846,1747302358016,-450.0,0.00016896,2]
[361139847,1747302358037,-450.0,0.00016896,2]
[361139848,1747302358059,-450.0,0.00016896,2]
[361139849,1747302358086,-450.0,0.00016896,2]
[361139850,1747302358107,-450.0,0.00016896,2]
[361139851,1747302358129,-450.0,0.00016896,2]
[361139852,1747302358150,-450.0,0.00016896,2]
[361139853,1747302358174,-450.0,0.00016896,2]
[361139854,1747302358198,-450.0,0.00016896,2]
[361139855,1747302358221,-450.0,0.00016896,2]
[361139856,1747302358243,-450.0,0.00016896,2]
[361139857,1747302358266,-450.0,0.00016896,2]
[361139858,1747302358288,-450.0,0.00016896,2]
[361139859,1747302358310,-450.0,0.00016896,2]
[361139860,1747302358332,-450.0,0.00016896,2]
[361139861,1747302358354,-450.0,0.00016896,2]
[361139862,1747302358376,-450.0,0.00016896,2]
[361139863,1747302358398,-450.0,0.00016896,2]
[361139864,1747302358422,-450.0,0.00016896,2]
[361139865,1747302358447,-450.0,0.00016896,2]
[361139866,1747302358470,-1464.03,0.00016896,2]
[361139867,1747302358494,-450.0,0.00016896,2]
[361139868,1747302358517,-450.0,0.00016896,2]
[361139869,1747302358539,-873.7,0.00016896,2]
[361139870,1747302358563,-404.27774871,0.00016896,2]
[361139871,1747302358588,-891.75,0.00016896,2]
[361139872,1747302358611,-450.0,0.00016896,2]
[361139873,1747302358634,-450.0,0.00016896,2]
[361139874,1747302358657,-450.0,0.00016896,2]
[361139875,1747302358682,-407.74949268,0.00016896,2]
[361139876,1747302358706,-450.0,0.00016896,2]
[361139877,1747302358731,-5101.95,0.00016896,2]
[361139878,1747302358754,-1759.34,0.00016896,2]
[361139879,1747302358777,-450.0,0.00016896,2]
[361139880,1747302358800,-1432.07,0.00016896,2]
[361139881,1747302358823,-450.0,0.00016896,2]
[361139882,1747302358845,-450.0,0.00016896,2]
[361139883,1747302358868,-450.0,0.00016896,2]
[361139884,1747302358892,-2781.28,0.00016896,2]
[361139885,1747302358915,-450.0,0.00016896,2]
[361139886,1747302358938,-450.0,0.00016896,2]
[361139887,1747302358964,-450.0,0.00016896,2]
[361139888,1747302358986,-450.0,0.00016896,2]
[361139889,1747302359009,-450.0,0.00016896,2]
[361139890,1747302359031,-450.0,0.00016896,2]
[361139891,1747302359052,-450.0,0.00016896,2]
[361139892,1747302359075,-450.0,0.00016896,2]
[361139893,1747302359103,-798.62,0.00016896,2]
[361139894,1747302359127,-450.0,0.00016896,2]
[361139895,1747302359151,-403.84699663,0.00016896,2]
[361139896,1747302359175,-450.0,0.00016896,2]
[361139897,1747302359200,-450.0,0.00016896,2]
[361139898,1747302359223,-450.0,0.00016896,2]
[361139899,1747302359245,-450.0,0.00016896,2]
[361139900,1747302359269,-450.0,0.00016896,2]
[361139901,1747302359291,-450.0,0.00016896,2]
[361139902,1747302359312,-450.0,0.00016896,2]
[361139903,1747302359334,-450.0,0.00016896,2]
[361139904,1747302359357,-1223.85,0.00016896,2]
[361139905,1747302359379,-536.54,0.00016896,2]
[361139906,1747302359403,-1194.37,0.00016896,2]
[361139907,1747302359425,-450.0,0.00016896,2]
[361139908,1747302359448,-450.0,0.00016896,2]
[361139909,1747302359471,-450.0,0.00016896,2]
[361139910,1747302359493,-450.0,0.00016896,2]
[361139911,1747302359515,-450.0,0.00016896,2]
[361139912,1747302359538,-450.0,0.00016896,2]
[361139913,1747302359560,-450.0,0.00016896,2]
[361139914,1747302359583,-450.0,0.00016896,2]
[361139915,1747302359605,-450.0,0.00016896,2]
[361139916,1747302359627,-450.0,0.00016896,2]
[361139917,1747302359656,-466.4456149,0.00016896,2]
[361139918,1747302359683,-450.0,0.00016896,2]
[361139919,1747302359707,-450.0,0.00016896,2]
[361139920,1747302359731,-450.0,0.00016896,2]
[361139921,1747302359755,-450.0,0.00016896,2]
[361139922,1747302359777,-522.65,0.00016896,2]
[361139923,1747302359800,-450.0,0.00016896,2]
[361139924,1747302359824,-450.0,0.00016896,2]
[361139925,1747302359848,-450.0,0.00016896,2]
[361139926,1747302359871,-594.68687416,0.00016896,2]
[361139927,1747302359894,-401.75445303,0.00016896,2]
[361139928,1747302359917,-403.90594273,0.00016896,2]
[361139929,1747302359941,-450.0,0.00016896,2]
[361139930,1747302359965,-450.0,0.00016896,2]
[361139931,1747302359987,-450.0,0.00016896,2]
[361139932,1747302360012,-450.0,0.00016896,2]
[361139933,1747302360035,-450.0,0.00016896,2]
[361139934,1747302360217,-473.33,0.00016896,2]
[361139935,1747302360240,-450.0,0.00016896,2]
[361139936,1747302360263,-408.82001468,0.00016896,2]
[361139937,1747302360288,-450.0,0.00016896,2]
[361139938,1747302360312,-450.0,0.00016897,2]
[361139939,1747302360335,-450.0,0.00016897,2]
[361139940,1747302360357,-401.12213207,0.00016897,2]
[361139941,1747302360379,-500.0,0.00016897,2]
[361139942,1747302360402,-500.0,0.00016897,2]
[361139943,1747302360425,-500.0,0.00016897,2]
[361139944,1747302360448,-267.03056649,0.00016897,2]
[361139945,1747302360469,-500.0,0.00016897,2]
[361139946,1747302360491,-500.0,0.00016897,2]
[361139947,1747302360513,-372.05866026,0.00016897,2]
[361139948,1747302360536,-500.0,0.00016897,2]
[361139949,1747302360559,-500.0,0.00016897,2]
[361139950,1747302360584,-500.0,0.00016897,2]
[361139951,1747302360606,-500.0,0.00016897,2]
[361139952,1747302360632,-500.0,0.00016897,2]
[361139953,1747302360655,-500.0,0.00016897,2]
[361139954,1747302360678,-500.0,0.00016897,2]
[361139955,1747302360703,-300.0,0.00016897,2]
[361139956,1747302360725,-450.0,0.00016897,2]
[361139957,1747302360746,-450.0,0.00016897,2]
[361139958,1747302360770,-450.0,0.00016897,2]
[361139959,1747302360791,-500.0,0.00016897,2]